bitfinex-derivatives/quotes_ETHF0:USTF0_20240917
["timestamp","ask_amount","ask_price","bid_price","bid_amount"]
[1726545857405,1.26,2284.1,2283.8,0.402]
[1726545857606,1.26,2284.1,2283.8,0.7874]
[1726545858508,1.26,2284.1,2284.0,0.4378]
[1726545867511,1.211,2284.2,2284.1,0.43778]
[1726545867705,2.471,2284.2,2284.1,0.43778]
[1726545870412,1.6423,2284.2,2284.1,0.43778]
[1726545871116,1.6423,2284.2,2284.1,0.84838]
[1726545872416,1.6423,2284.2,2284.1,1.25688]
[1726545878211,0.102,2284.4,2284.3,0.43774]
[1726545878418,0.102,2284.5,2284.4,0.43772]
[1726545878419,1.6641,2284.5,2284.4,0.43772]
[1726545880413,2.0599,2284.6,2284.5,0.43771]
[1726545919249,2.0599,2284.6,2284.5,0.85331]
[1726545919848,0.7999,2284.6,2284.5,0.85331]
[1726545921743,1.6562,2284.7,2284.6,0.43769]
[1726545922442,1.6562,2284.7,2284.5,0.85329]
[1726545922641,1.6562,2284.7,2284.6,0.43769]
[1726545925345,0.3962,2284.7,2284.6,0.43769]
[1726545925546,1.362,2284.9,2284.8,0.43765]
[1726545925758,2.0608,2284.9,2284.8,0.43765]
[1726545926649,0.4194,2285.0,2284.9,0.43763]
[1726545926851,1.6672,2285.1,2285.0,0.43761]
[1726545928452,1.6672,2285.1,2285.0,0.85181]
[1726545928758,1.6672,2285.1,2285.0,5.22781]
[1726545931851,0.4072,2285.1,2285.0,5.22781]
[1726545934952,0.3936,2285.2,2285.0,4.7902]
[1726545935160,0.102,2285.4,2285.3,0.43755]
[1726545935455,4.7515,2285.5,2285.4,0.43753]
[1726545935864,3.5172,2285.5,2285.4,4.81273]
[1726545936052,3.5172,2285.5,2285.4,8.02053]
[1726545936257,3.5172,2285.5,2285.4,8.42163]
[1726545938052,4.7772,2285.5,2285.4,4.81273]
[1726545938857,7.985,2285.5,2285.3,0.43754]
[1726545939156,7.985,2285.5,2284.8,2.24040104]
[1726545939157,2.4706,2285.4,2284.9,0.4152]
[1726545939458,1.26,2285.1,2284.8,0.4033]
[1726545939766,1.26,2284.9,2284.8,0.43765]
[1726545941164,2.444,2285.0,2284.9,0.43763]
[1726545942962,1.184,2285.0,2284.9,4.81443]
[1726545945563,0.7928,2285.0,2284.9,4.81443]
[1726545946362,0.7928,2285.0,2284.9,0.43763]
[1726545951162,0.7928,2285.0,2284.9,3.64543]
[1726545952664,0.7928,2285.0,2284.9,0.43763]
[1726545952868,0.7928,2285.0,2284.9,3.64543]
[1726545955471,1.26,2285.2,2285.1,0.43759]
[1726545956970,2.0381,2285.2,2285.1,0.43759]
[1726545957172,2.0381,2285.2,2285.0,0.4376]
[1726545957869,2.0381,2285.2,2285.1,0.43759]
[1726545964671,2.0381,2285.2,2284.9,3.2078]
[1726545965172,2.0381,2285.2,2284.8,0.7758]
[1726545965375,2.0381,2285.2,2285.1,0.43759]
[1726545966765,0.7781,2285.2,2285.1,0.43759]
[1726545970877,0.102,2285.4,2285.1,4.7923]
[1726545971075,0.4031,2285.4,2285.3,0.43755]
[1726545973279,0.4031,2285.4,2285.3,0.86015]
[1726545973782,0.3979,2285.5,2285.4,0.43753]
[1726545973982,0.3953,2285.6,2285.4,0.43753]
[1726545974195,0.3953,2285.6,2285.5,0.43751]
[1726545974382,0.4128,2285.7,2285.6,0.43749]
[1726545974580,0.4128,2285.7,2285.6,0.82709]
[1726545975088,1.26,2285.9,2285.6,4.7648]
[1726545975280,1.26,2285.9,2285.8,0.43746]
[1726545977285,1.2041,2286.1,2285.9,0.43742]
[1726545977489,1.26,2286.0,2285.9,0.43742]
[1726545981287,2.4641,2286.1,2285.7,0.8336]
[1726545981481,2.4641,2286.1,2286.0,0.43742]
[1726545985085,1.2041,2286.1,2286.0,0.43742]
[1726545985883,1.2041,2286.1,2286.0,0.83742]
[1726545986282,0.7994,2286.1,2286.0,0.83742]
[1726545986488,0.4174,2286.3,2286.2,0.43738]
[1726545986688,0.8422,2286.4,2286.3,0.43736]
[1726545987193,0.8422,2286.4,2286.3,0.83736]
[1726545988189,3.9346,2286.5,2286.4,0.43734]
[1726545988388,0.4174,2286.5,2286.4,0.43734]
[1726545989499,0.8134,2286.6,2286.5,0.43732]
[1726545989697,0.8134,2286.6,2286.5,3.64512]
[1726545990694,0.3917,2286.6,2286.5,8.01872]
[1726545990895,0.4002,2286.7,2286.6,0.4373]
[1726545991091,6.725,2287.1,2287.0,0.43723]
[1726545991292,1.464,2287.2,2286.8,4.4678]
[1726545991293,1.26,2287.2,2286.8,4.4678]
[1726545991696,1.26,2287.2,2287.0,0.43722]
[1726545992002,1.26,2287.2,2287.1,0.43721]
[1726545992496,1.26,2287.2,2286.8,3.2078]
[1726545992800,3.2078,2287.2,2286.9,0.43723]
[1726545992996,3.64499,2287.2,2286.9,0.43723]
[1726545993600,1.26,2287.0,2286.9,0.43723]
[1726546000200,1.26,2287.1,2286.9,0.43723]
[1726546002314,0.4046,2287.0,2286.9,0.43723]
[1726546004411,1.2194,2287.0,2286.9,0.43723]
[1726546005707,1.2194,2287.0,2286.7,3.2078]
[1726546005914,1.2194,2287.0,2286.9,0.43725]
[1726546016517,1.2194,2287.0,2286.8,0.43725]
[1726546017721,1.2194,2287.0,2286.9,0.43725]
[1726546020518,1.2194,2287.0,2286.8,0.86026]
[1726546020819,1.65663,2287.0,2286.8,0.423]
[1726546021118,1.2194,2287.0,2286.9,0.43725]
[1726546023116,1.65664,2287.0,2286.8,0.423]
[1726546023421,0.43727,2286.8,2286.6,0.3902]
[1726546023621,1.69727,2286.8,2286.6,0.43729]
[1726546023826,2.4447,2286.7,2286.4,3.64513]
[1726546024123,0.43731,2286.6,2286.4,3.64513]
[1726546024516,0.4373,2286.6,2286.4,3.64513]
[1726546027318,2.882,2286.7,2286.5,0.43732]
[1726546027720,0.4373,2286.6,2286.5,0.43732]
[1726546029621,0.43732,2286.5,2286.2,3.2078]
[1726546029816,1.26,2286.4,2286.1,1.1908]
[1726546030021,1.6828,2286.4,2286.1,1.1908]
[1726546030319,0.4228,2286.4,2286.3,0.43736]
[1726546031526,0.86015,2286.4,2286.2,0.43737]
[1726546031725,0.43737,2286.3,2286.1,0.82759]
[1726546031917,1.6974,2286.2,2285.9,3.5948]
[1726546032125,1.26,2286.1,2285.9,3.64522]
[1726546032315,1.6672,2286.1,2285.9,3.64522]
[1726546033828,1.6672,2286.1,2285.9,0.43742]
[1726546035119,0.4072,2286.1,2286.0,0.43742]
[1726546035326,0.4072,2286.1,2285.9,0.43742]
[1726546035622,1.24937,2286.3,2286.0,3.64522]
[1726546035827,1.64867,2286.3,2286.1,0.7802]
[1726546038429,1.26,2286.6,2286.3,0.43735]
[1726546038631,0.4135,2286.5,2286.3,0.43735]
[1726546039423,0.4135,2286.5,2286.4,0.3998]
[1726546040224,0.85082,2286.5,2286.4,0.3998]
[1726546040420,0.4135,2286.5,2286.4,0.3998]
[1726546040632,0.4135,2286.5,2286.4,0.83714]
[1726546040829,0.85082,2286.5,2286.4,0.83714]
[1726546047541,0.4135,2286.5,2286.4,0.83714]
[1726546047734,3.64508,2286.8,2286.6,0.43729]
[1726546047941,0.7822,2286.7,2286.6,0.43729]
[1726546048241,1.60868,2286.7,2286.6,0.43729]
[1726546049140,2.86868,2286.7,2286.5,0.43732]
[1726546050041,2.86868,2286.7,2286.6,0.4373]
[1726546051142,0.4373,2286.6,2286.5,0.43731]
[1726546051342,0.4373,2286.6,2286.4,0.43733]
[1726546052537,1.26,2286.5,2286.4,0.43733]
[1726546053046,1.69733,2286.5,2286.4,0.43734]
[1726546053236,4.90513,2286.5,2286.4,0.43734]
[1726546054944,4.90513,2286.5,2286.3,0.43735]
[1726546055144,0.4052,2286.4,2286.3,0.43735]
[1726546058352,0.84254,2286.4,2286.3,0.43735]
[1726546058644,0.4052,2286.4,2286.3,0.43735]
[1726546069555,1.2051,2286.4,2286.3,0.43735]
[1726546075856,4.30094,2286.9,2286.3,4.3736]
[1726546076066,0.43729,2286.7,2286.6,0.43729]
[1726546076258,0.4132,2286.8,2286.7,0.43728]
[1726546076660,0.4129,2286.9,2286.8,0.43727]
[1726546077055,2.0732,2287.0,2286.9,0.43725]
[1726546077355,0.8132,2287.0,2286.9,0.43725]
[1726546080564,2.51043,2287.0,2286.9,0.43725]
[1726546080864,2.51043,2287.0,2286.8,0.85595]
[1726546081071,2.51043,2287.0,2286.9,0.43725]
[1726546081269,1.25043,2287.0,2286.9,0.43725]
[1726546081476,2.0732,2287.0,2286.9,0.43725]
[1726546081974,2.51044,2287.0,2286.8,0.43725]
[1726546083166,2.51044,2287.0,2286.9,0.43725]
[1726546085779,2.51044,2287.0,2286.8,0.43725]
[1726546087275,2.51044,2287.0,2286.9,0.43725]
[1726546088072,2.51044,2287.0,2286.8,0.43725]
[1726546089178,2.51044,2287.0,2286.9,0.43725]
[1726546093482,1.25044,2287.0,2286.9,0.43725]
[1726546100577,0.8132,2287.0,2286.9,0.43725]
[1726546100882,1.25043,2287.0,2286.9,0.43725]
[1726546101179,0.8132,2287.0,2286.9,0.43725]
[1726546101989,1.25043,2287.0,2286.9,0.43725]
[1726546102577,0.8132,2287.0,2286.9,0.43725]
[1726546102786,0.8132,2287.0,2286.9,1.69725]
[1726546103284,0.4232,2287.0,2286.9,0.43725]
[1726546110280,5.718,2287.2,2286.9,0.43725]
[1726546110477,5.718,2287.2,2286.7,1.6541]
[1726546110478,6.1,2287.2,2287.0,0.43722]
[1726546112786,0.43721,2287.1,2287.0,0.43722]
[1726546113189,6.1,2287.2,2287.0,0.43722]
[1726546114091,0.43721,2287.1,2287.0,0.43722]
[1726546115689,6.1,2287.2,2287.1,0.43721]
[1726546117091,0.43721,2287.1,2287.0,0.43722]
[1726546119095,5.6628,2287.2,2287.0,0.43722]
[1726546119296,0.43721,2287.1,2287.0,0.43722]
[1726546122795,0.43721,2287.1,2287.0,0.43721]
[1726546125493,6.1,2287.2,2287.0,0.43721]
[1726546125892,2.8922,2287.2,2287.1,0.43721]
[1726546127497,0.43721,2287.1,2287.0,0.43721]
[1726546129887,2.89221,2287.2,2286.7,1.4873]
[1726546130297,0.43722,2287.1,2287.0,0.43721]
[1726546131088,2.8922,2287.2,2287.1,0.43721]
[1726546132496,2.8922,2287.2,2286.7,1.4873]
[1726546132497,0.43721,2287.1,2287.0,0.43721]
[1726546140311,2.8922,2287.2,2287.0,0.43721]
[1726546141909,2.8922,2287.2,2287.1,0.43721]
[1726546142118,2.455,2287.2,2286.7,2.7473]
[1726546142412,2.8922,2287.2,2287.1,0.43721]
[1726546142614,0.43721,2287.1,2286.6,5.10635]
[1726546142919,1.26,2286.8,2286.4,0.3843]
[1726546143213,1.26,2286.7,2286.5,0.43731]
[1726546143402,1.69729,2286.7,2286.5,0.43731]
[1726546143599,1.69729,2286.7,2286.3,3.622]
[1726546143808,1.26,2286.7,2286.6,0.4373]
[1726546145003,1.26,2286.7,2286.3,3.622]
[1726546145004,1.26,2286.7,2286.5,0.43731]
[1726546145407,1.26,2286.7,2286.3,3.622]
[1726546146311,1.26,2286.7,2286.5,0.43731]
[1726546146909,1.26,2286.7,2286.6,0.4373]
[1726546147108,1.26,2286.8,2286.7,0.43728]
[1726546147413,1.69722,2287.1,2286.6,1.26]
[1726546147613,7.1622,2287.2,2286.8,1.26]
[1726546147813,3.5172,2287.2,2287.1,0.43721]
[1726546148014,1.69717,2287.3,2287.1,0.43721]
[1726546148319,1.69716,2287.4,2287.1,0.43721]
[1726546148717,0.43717,2287.3,2287.1,0.43721]
[1726546149720,1.69717,2287.4,2287.1,0.43721]
[1726546150113,0.43718,2287.3,2287.0,0.85302]
[1726546150309,0.43718,2287.3,2287.1,0.4372]
[1726546151018,1.69718,2287.3,2287.1,0.4372]
[1726546154717,0.43719,2287.2,2287.0,0.85301]
[1726546155416,0.43719,2287.2,2287.0,0.43721]
[1726546156615,0.43719,2287.2,2287.1,0.43721]
[1726546157420,0.85579,2287.2,2287.1,0.43721]
[1726546158028,1.25919,2287.2,2287.1,0.43721]
[1726546159723,1.64929,2287.2,2287.1,0.43721]
[1726546160929,0.43721,2287.1,2287.0,0.43722]
[1726546161424,5.6328,2287.1,2286.5,3.2078]
[1726546161631,1.69726,2286.9,2286.7,0.43727]
[1726546161819,0.7825,2286.8,2286.7,0.43727]
[1726546162016,1.1718,2286.8,2286.7,0.43727]
[1726546168826,1.60907,2286.8,2286.7,0.43727]
[1726546171230,1.1718,2286.8,2286.7,0.43727]
[1726546171734,1.60907,2286.8,2286.7,0.43727]
[1726546172133,1.1718,2286.8,2286.7,0.43727]
[1726546181436,3.2078,2287.0,2286.9,0.43725]
[1726546181643,0.4138,2287.0,2286.9,0.43725]
[1726546185240,0.85103,2287.0,2286.9,0.43725]
[1726546188030,0.4138,2287.0,2286.9,0.43725]
[1726546188742,0.85103,2287.0,2286.9,0.43725]
[1726546192142,0.4138,2287.0,2286.9,0.43725]
[1726546192645,0.85103,2287.0,2286.9,0.43725]
[1726546193539,0.4138,2287.0,2286.9,0.43725]
[1726546194142,0.85103,2287.0,2286.9,0.43725]
[1726546194952,0.4138,2287.0,2286.9,0.43725]
[1726546195244,0.85103,2287.0,2286.9,0.43725]
[1726546198342,0.85103,2287.0,2286.4,0.387]
[1726546198343,15.2544,2287.0,2286.4,0.387]
[1726546198551,15.2544,2287.0,2286.3,3.2078]
[1726546198552,1.26,2286.7,2286.5,0.43732]
[1726546198751,0.8266,2286.6,2286.5,0.43732]
[1726546199047,1.2137,2286.6,2286.5,0.43732]
[1726546199246,1.651,2286.6,2286.5,0.43732]
[1726546200544,1.2137,2286.6,2286.4,0.43733]
[1726546200744,0.43734,2286.4,2286.3,3.64515]
[1726546200951,1.26,2286.5,2286.3,0.43735]
[1726546201359,0.43734,2286.4,2286.3,0.43735]
[1726546202551,1.69733,2286.5,2286.3,0.43734]
[1726546202855,1.69733,2286.5,2286.3,0.43735]
[1726546203053,6.11882,2286.6,2286.5,0.43732]
[1726546203348,0.43733,2286.5,2286.4,0.43734]
[1726546203555,0.43737,2286.3,2286.0,3.9789]
[1726546203753,0.3858,2286.2,2286.1,0.4374]
[1726546203953,5.34749494,2286.6,2286.3,0.43736]
[1726546203954,4.0344,2286.6,2286.3,0.43736]
[1726546204155,0.4004,2286.5,2286.4,0.43734]
[1726546204453,0.4004,2286.5,2286.3,0.43735]
[1726546204454,0.43734,2286.4,2286.3,0.43735]
[1726546204654,0.43734,2286.4,2286.2,0.43737]
[1726546205048,0.43734,2286.4,2286.3,0.43736]
[1726546205657,2.09774,2286.5,2286.3,0.43736]
[1726546205853,0.4004,2286.5,2286.4,0.43734]
[1726546206357,4.0344,2286.6,2286.5,0.43732]
[1726546206656,0.64126,2286.9,2286.4,2.35334]
[1726546206857,0.64126,2286.9,2286.7,0.43727]
[1726546206858,0.4004,2286.8,2286.7,0.43727]
[1726546211467,0.83767,2286.8,2286.7,0.43727]
[1726546211865,0.4004,2286.8,2286.7,0.43727]
[1726546214672,0.4004,2286.8,2286.7,0.43728]
[1726546214968,0.83767,2286.8,2286.7,0.43728]
[1726546216065,0.4004,2286.8,2286.7,0.43728]
[1726546216262,0.43725,2286.9,2286.8,0.43727]
[1726546216470,0.43725,2286.9,2286.7,0.43728]
[1726546219271,0.43727,2286.8,2286.7,0.43728]
[1726546219572,0.43726,2286.9,2286.7,0.43728]
[1726546222462,0.43727,2286.8,2286.7,0.43728]
[1726546223070,0.43729,2286.7,2286.5,3.2078]
[1726546223271,0.4373,2286.6,2286.5,3.2078]
[1726546223475,5.56108,2286.6,2286.1,3.2078]
[1726546223664,0.43735,2286.4,2286.2,0.43736]
[1726546223863,0.43735,2286.4,2286.3,0.43736]
[1726546224069,0.43735,2286.4,2286.1,3.5966]
[1726546224070,0.43735,2286.4,2286.2,0.43737]
[1726546224275,0.4093,2286.3,2286.2,0.43737]
[1726546228176,0.85093,2286.5,2286.3,0.43735]
[1726546228575,0.85093,2286.5,2286.4,0.3848]
[1726546228877,0.85093,2286.5,2286.4,0.82214]
[1726546229074,8.02214,2286.9,2286.4,0.3848]
[1726546229275,0.4373,2286.7,2286.4,0.3848]
[1726546229680,0.4373,2286.7,2286.6,0.4373]
[1726546229872,0.85177,2286.8,2286.6,0.43729]
[1726546230076,0.85177,2286.8,2286.7,0.43728]
[1726546230281,0.4145,2286.8,2286.7,0.43728]
[1726546230475,0.4145,2286.8,2286.4,1.6448]
[1726546230476,6.725,2286.9,2286.8,0.43727]
[1726546230674,0.43727,2286.8,2286.7,0.43727]
[1726546230882,0.43727,2286.8,2286.7,0.82207]
[1726546232173,1.26,2286.8,2286.3,2.0653]
[1726546232378,2.10109,2286.7,2286.3,1.1969]
[1726546232783,2.10109,2286.7,2286.6,0.4373]
[1726546239576,2.50969,2286.7,2286.6,0.4373]
[1726546241188,0.8124,2286.7,2286.6,0.4373]
[1726546245981,3.64504,2287.0,2286.5,1.26]
[1726546246182,1.63592,2287.1,2286.5,1.26]
[1726546246493,1.1987,2287.1,2287.0,0.43723]
[1726546246691,1.1987,2287.1,2286.9,0.43723]
[1726546247194,1.1987,2287.1,2287.0,0.43723]
[1726546250495,0.8007,2287.1,2287.0,0.43723]
[1726546250691,0.3826,2287.4,2286.9,1.6513]
[1726546250895,1.6516,2287.3,2286.9,1.6513]
[1726546251289,0.3916,2287.3,2287.2,0.43719]
[1726546251593,1.26,2287.3,2287.2,0.43719]
[1726546251895,1.6516,2287.3,2287.2,0.43719]
[1726546252390,1.6516,2287.3,2287.1,0.4372]
[1726546252593,1.6516,2287.3,2287.2,0.43719]
[1726546253995,4.8594,2287.3,2286.9,0.3913]
[1726546254195,1.26,2287.2,2287.1,0.4372]
[1726546254391,4.8594,2287.3,2287.1,0.4372]
[1726546255096,5.29657,2287.3,2287.1,0.4372]
[1726546255292,4.03657,2287.3,2287.1,0.4372]
[1726546255496,0.3916,2287.3,2287.2,0.4075]
[1726546255805,3.5994,2287.3,2287.1,0.4372]
[1726546257302,3.5994,2287.3,2287.2,0.43719]
[1726546258605,3.5994,2287.3,2287.1,0.4372]
[1726546258908,3.5994,2287.3,2287.2,0.43719]
[1726546260902,0.4372,2287.2,2287.0,0.43722]
[1726546261205,1.6526,2287.1,2287.0,0.43722]
[1726546263807,1.6526,2287.1,2287.0,0.43723]
[1726546270812,0.3926,2287.1,2287.0,0.43723]
[1726546277924,0.82981,2287.1,2287.0,0.43723]
[1726546278434,2.08981,2287.1,2287.0,0.43723]
[1726546278632,1.6526,2287.1,2287.0,0.43723]
[1726546279926,2.0758,2287.1,2287.0,0.43723]
[1726546280324,2.51301,2287.1,2287.0,0.43723]
[1726546280530,2.0758,2287.1,2287.0,0.43723]
[1726546282029,2.0758,2287.1,2286.9,0.43724]
[1726546282230,0.3826,2287.0,2286.9,0.43724]
[1726546285836,0.8158,2287.1,2287.0,0.43723]
[1726546287034,1.69719,2287.2,2287.1,0.43721]
[1726546288934,1.6972,2287.2,2287.0,0.43722]
[1726546289134,1.6972,2287.2,2287.1,0.43721]
[1726546294546,1.6972,2287.2,2287.0,0.43721]
[1726546295536,1.6972,2287.2,2287.1,0.43721]
[1726546299544,1.26,2287.2,2287.1,0.43721]
[1726546299949,1.69719,2287.2,2287.1,0.43721]
[1726546300451,1.26,2287.2,2287.1,0.43721]
[1726546300650,1.26,2287.2,2286.7,0.8378]
[1726546300851,0.43721,2287.1,2287.0,0.43722]
[1726546301346,1.6972,2287.2,2287.0,0.43722]
[1726546301754,0.43721,2287.1,2287.0,0.43722]
[1726546302051,1.6972,2287.2,2287.0,0.43722]
[1726546305352,0.43721,2287.1,2287.0,0.43722]
[1726546306061,6.72583,2287.1,2286.7,0.85798]
[1726546306257,1.26,2286.8,2286.4,1.14630104]
[1726546306455,1.26,2286.5,2286.4,0.43733]
[1726546306759,1.69731,2286.6,2286.4,0.43733]
[1726546306960,2.50261,2286.6,2286.4,0.43733]
[1726546307157,2.50261,2286.6,2286.5,0.43732]
[1726546307357,2.50262,2286.6,2286.4,0.43734]
[1726546307964,1.69733,2286.5,2286.3,0.43735]
[1726546308353,0.417,2286.4,2286.3,0.43735]
[1726546319363,1.26,2286.5,2286.4,0.43734]
[1726546319565,1.6734,2286.5,2286.4,0.43734]
[1726546321768,0.4134,2286.5,2286.4,0.43734]
[1726546343197,0.4134,2286.5,2286.4,0.83234]
[1726546345496,0.8053,2286.6,2286.5,0.43732]
[1726546346494,2.0653,2286.6,2286.5,0.43732]
[1726546346702,2.50262,2286.6,2286.5,0.43732]
[1726546347092,2.0653,2286.6,2286.5,0.43732]
[1726546353510,0.8053,2286.6,2286.5,0.43732]
[1726546358614,1.2426,2286.6,2286.5,0.43732]
[1726546360216,0.8053,2286.6,2286.5,0.43732]
[1726546360707,1.2426,2286.6,2286.5,0.43732]
[1726546361108,0.8053,2286.6,2286.5,0.43732]
[1726546362717,1.2426,2286.6,2286.5,0.43732]
[1726546365309,0.43733,2286.5,2286.4,0.43734]
[1726546366616,1.69733,2286.5,2286.4,0.43734]
[1726546367415,1.26,2286.5,2286.4,0.43734]
[1726546368319,1.69732,2286.5,2286.4,0.43734]
[1726546369020,1.26,2286.5,2286.4,0.43734]
[1726546370912,1.69732,2286.5,2286.4,0.43734]
[1726546371316,1.26,2286.5,2286.4,0.43734]
[1726546374625,1.26,2286.5,2286.3,0.4147]
[1726546374626,0.8053,2286.6,2286.5,0.43732]
[1726546377223,2.0653,2286.6,2286.5,0.43732]
[1726546385723,2.50261,2286.6,2286.5,0.43732]
[1726546386619,2.0653,2286.6,2286.5,0.43732]
[1726546386830,2.5026,2286.6,2286.5,0.43732]
[1726546388331,2.0653,2286.6,2286.5,0.43732]
[1726546389027,2.5026,2286.6,2286.5,0.43732]
[1726546395733,2.0653,2286.6,2286.5,0.43732]
[1726546396935,2.5026,2286.6,2286.5,0.43732]
[1726546397134,2.5026,2286.6,2286.4,0.43733]
[1726546397331,2.5026,2286.6,2286.5,0.43732]
[1726546399331,2.5026,2286.6,2286.4,0.43733]
[1726546399535,1.26,2286.5,2286.4,0.43733]
[1726546408137,1.6746,2286.5,2286.4,0.43733]
[1726546420457,2.11192,2286.5,2286.4,0.43733]
[1726546420653,1.6746,2286.5,2286.4,0.43733]
[1726546423953,0.4146,2286.5,2286.4,0.43733]
[1726546424853,0.4146,2286.5,2286.4,0.84853]
[1726546431864,0.4146,2286.5,2286.4,0.43733]
[1726546432362,1.6746,2286.5,2286.4,0.43733]
[1726546432754,0.4374,2286.1,2285.8,1.14630104]
[1726546433056,1.6571,2286.0,2285.9,0.43742]
[1726546433259,2.0479,2286.0,2285.9,0.43742]
[1726546438467,2.4584,2286.0,2285.9,0.43742]
[1726546441864,0.3971,2286.0,2285.9,0.43742]
[1726546443663,2.0884,2286.2,2286.1,0.4374]
[1726546444074,2.5071,2286.2,2286.1,0.4374]
[1726546446367,2.94448,2286.2,2286.1,0.4374]
[1726546446564,2.5071,2286.2,2286.1,0.4374]
[1726546455569,1.2471,2286.2,2286.1,0.4374]
[1726546455772,2.5071,2286.2,2286.1,0.4374]
[1726546478482,6.15229,2286.2,2285.8,0.4052]
[1726546478683,4.89229,2286.2,2286.0,0.43741]
[1726546479987,0.4374,2286.1,2286.0,0.43741]
[1726546480186,1.6974,2286.1,2286.0,0.43741]
[1726546480684,1.26,2286.1,2286.0,0.43741]
[1726546482790,1.6974,2286.1,2286.0,0.43741]
[1726546484690,1.26,2286.1,2286.0,0.43741]
[1726546500503,1.26,2286.1,2286.0,1.63481]
[1726546501100,1.26,2286.1,2286.0,2.78111104]
[1726546501302,1.26,2286.1,2286.0,1.63481]
[1726546501693,1.26,2286.1,2286.0,2.78111104]
[1726546501896,4.4678,2286.2,2286.1,0.4374]
[1726546502099,1.26,2286.2,2286.1,0.4374]
[1726546502308,1.26,2286.2,2286.1,2.67721104]
[1726546502500,1.26,2286.2,2286.1,1.58370104]
[1726546503603,1.26,2286.2,2286.1,0.4374]
[1726546504099,2.0457,2286.2,2286.1,0.4374]
[1726546506809,2.0457,2286.2,2286.1,0.832]
[1726546509605,2.0457,2286.2,2286.1,0.4374]
[1726546511114,2.0457,2286.2,2286.1,0.8276]
[1726546511412,0.4024,2286.4,2286.3,0.43736]
[1726546511606,2.078,2286.4,2286.3,0.43736]
[1726546512012,6.4516,2286.4,2286.3,0.43736]
[1726546512215,2.078,2286.4,2286.3,0.43736]
[1726546512611,6.88894,2286.4,2286.3,0.43736]
[1726546513013,6.4516,2286.4,2286.3,0.43736]
[1726546517020,2.078,2286.4,2286.3,0.43736]
[1726546519717,2.51534,2286.4,2286.3,0.43736]
[1726546520627,2.078,2286.4,2286.3,0.43736]
[1726546522623,2.51534,2286.4,2286.3,0.43736]
[1726546523721,0.818,2286.4,2286.3,0.43736]
[1726546524121,0.818,2286.4,2286.3,0.85336]
[1726546524623,2.078,2286.4,2286.3,0.85336]
[1726546526021,2.078,2286.4,2286.3,0.43736]
[1726546535331,0.4024,2286.4,2286.3,0.43736]
[1726546535740,0.3995,2286.5,2286.4,0.43734]
[1726546536038,1.26,2286.6,2286.5,0.43732]
[1726546536039,1.6754,2286.6,2286.5,0.43732]
[1726546536228,0.4154,2286.6,2286.5,0.43732]
[1726546536435,3.2078,2286.8,2286.5,7.5814]
[1726546536436,1.26,2286.8,2286.5,7.5814]
[1726546536623,1.6754,2286.7,2286.6,0.4373]
[1726546540543,1.6754,2286.7,2286.6,4.8109]
[1726546541332,1.6754,2286.7,2286.4,3.2078]
[1726546541534,1.26,2286.5,2286.4,0.43734]
[1726546542441,2.0588,2286.6,2286.5,0.43732]
[1726546557245,2.0588,2286.6,2285.8,3.33354104]
[1726546557246,12.4324,2286.6,2285.7,1.14630104]
[1726546557445,0.43739,2286.2,2285.9,0.43743]
[1726546557651,0.8028,2286.1,2285.9,0.43743]
[1726546557954,1.2193,2286.1,2286.0,0.43742]
[1726546562251,2.4793,2286.1,2286.0,0.43742]
[1726546563648,2.4793,2286.1,2285.9,3.2078]
[1726546563649,2.4793,2286.1,2285.9,0.43742]
[1726546563844,1.26,2286.0,2285.9,0.43742]
[1726546565651,5.6344,2286.0,2285.6,3.2078]
[1726546565843,0.43743,2286.0,2285.8,0.43746]
[1726546567051,1.26,2285.9,2285.8,0.43746]
[1726546571042,1.26,2285.9,2285.6,3.2078]
[1726546571254,1.1816,2285.8,2285.7,0.43746]
[1726546571449,2.4416,2285.8,2285.7,0.43746]
[1726546576161,1.26,2286.0,2285.7,4.7738]
[1726546576358,1.26,2286.0,2285.9,0.43743]
[1726546585762,0.8362,2286.1,2286.0,0.43742]
[1726546585959,4.15854,2286.4,2286.3,0.43736]
[1726546586160,6.01004,2286.4,2286.3,0.43736]
[1726546586664,6.01004,2286.4,2286.2,0.43737]
[1726546586962,1.26,2286.3,2286.2,0.43737]
[1726546592272,1.69736,2286.3,2286.2,0.43737]
[1726546592865,5.6336,2286.3,2285.9,3.2078]
[1726546593167,1.26,2286.0,2285.6,0.43749]
[1726546593373,1.26,2286.0,2285.5,3.6302]
[1726546593374,1.26,2285.6,2285.5,4.06771]
[1726546595463,1.26,2285.7,2285.5,3.6302]
[1726546595667,1.26,2285.9,2285.6,1.26]
[1726546595978,1.26,2285.9,2285.8,3.64526]
[1726546596474,0.3977,2286.1,2286.0,0.43742]
[1726546596670,0.404,2286.2,2286.1,0.4374]
[1726546597264,2.0677,2286.3,2286.2,0.43738]
[1726546597575,1.6455,2286.3,2286.2,0.43738]
[1726546602980,1.6455,2286.3,2286.1,0.43739]
[1726546603177,1.26,2286.2,2286.1,0.43739]
[1726546603476,1.26,2286.2,2286.0,0.43741]
[1726546603669,2.0876,2286.1,2286.0,0.43741]